fUSD/lending_fUSD_20251226
["ID","MTS","AMOUNT","RATE_DAILY","PERIOD"]
[399844523,1766734351136,-600.0,0.00030137,120]
[399844524,1766734351146,-600.0,0.00030137,120]
[399844525,1766734351157,-600.0,0.00030137,120]
[399844526,1766734351167,-206.51,0.00030137,120]
[399844527,1766734351178,-200.0,0.00030137,2]
[399844528,1766734351188,-311.56,0.000302,30]
[399844529,1766734351198,-200.0,0.00030401,2]
[399844530,1766734351209,-3000.0,0.00030412,14]
[399844531,1766734351219,-200.0,0.00030437,2]
[399844532,1766734351230,-200.0,0.00030438,2]
[399844533,1766734351240,-200.0,0.00030438,2]
[399844534,1766734351250,-200.0,0.00030443,2]
[399844535,1766734351261,-168.0,0.00030447,14]
[399844536,1766734351271,-200.0,0.00030472,2]
[399844537,1766734351280,-200.0,0.0003049,2]
[399844538,1766734351291,-200.0,0.0003052,2]
[399844539,1766734351301,-200.0,0.00030528,2]
[399844540,1766734351312,-200.0,0.00030545,2]
[399844541,1766734351322,-200.0,0.00030552,2]
[399844542,1766734351332,-200.0,0.00030562,2]
[399844543,1766734351342,-674.38,0.0003057,30]
[399844544,1766734351351,-200.0,0.00030582,2]
[399844545,1766734351360,-200.0,0.00030587,2]
[399844546,1766734351370,-651.59357331,0.0003068,5]
[399844547,1766734351380,-1500.0,0.00030685,5]
[399844548,1766734351390,-200.0,0.00030705,2]
[399844549,1766734351399,-200.0,0.00030742,2]
[399844550,1766734351411,-200.0,0.00030743,2]
[399844551,1766734351421,-200.0,0.00030743,2]
[399844552,1766734351432,-4404.8770617,0.00030781,7]
[399844553,1766734351442,-250.0,0.000308,30]
[399844554,1766734351452,-2597.70442042,0.0003084,2]
[399844555,1766734351463,-209.0,0.0003084,30]
[399844556,1766734351473,-78571.61931906,0.0003095,2]
[399844557,1766734351483,-2000.0,0.00031,18]
[399844558,1766734351494,-1000.0,0.00031,11]
[399844559,1766734351504,-1000.0,0.00031,11]
[399844560,1766734351514,-1000.0,0.00031,7]
[399844561,1766734351524,-250.0,0.00031,30]
[399844562,1766734351931,-208.98141504,0.00031,120]
[399844563,1766734351947,-600.0,0.00031,2]
[399844564,1766734351956,-200.0,0.00031012,2]
[399844565,1766734351966,-300.0,0.00031042,2]
[399844566,1766734351976,-200.0,0.00031049,2]
[399844567,1766734351986,-200.0,0.0003105,2]
[399844568,1766734351996,-200.0,0.0003105,2]
[399844569,1766734352006,-311.56,0.000311,30]
[399844570,1766734352016,-1787.17,0.000311,14]
[399844571,1766734352025,-481.11077973,0.00031208,2]
[399844572,1766734352035,-200.0,0.00031322,2]
[399844573,1766734352044,-200.0,0.0003136,2]
[399844574,1766734352054,-200.0,0.00031361,2]
[399844575,1766734352064,-200.0,0.00031361,2]
[399844576,1766734352074,-170.45253052,0.000314,30]
[399844577,1766734352084,-341.0,0.000314,120]
[399844578,1766734352093,-19592.73934138,0.0003143,4]
[399844579,1766734352103,-196.30349889,0.000315,2]
[399844580,1766734352114,-150.0,0.000315,2]
[399844581,1766734352124,-300.72,0.000315,7]
[399844582,1766734352137,-17797.21146433,0.000315,120]
[399844583,1766734352147,-152.50445529,0.00031504,2]
[399844584,1766734352157,-217.99,0.00031507,120]
[399844585,1766734352167,-502.73353236,0.00031507,5]
[399844586,1766734352179,-554.23,0.00031864,2]
[399844587,1766734352188,-2455.12,0.00031864,2]
[399844588,1766734352198,-491.56483272,0.0003187,5]
[399844589,1766734352209,-500.0,0.0003187,30]
[399844590,1766734352219,-502.53696527,0.0003187,5]
[399844591,1766734352229,-500.0,0.0003187,30]
[399844592,1766734352239,-500.0,0.0003187,5]
[399844593,1766734352249,-500.0,0.0003187,30]
[399844594,1766734352259,-346.56371056,0.0003187,5]
[399844595,1766734352269,-50000.0,0.00032,32]
[399844596,1766734352279,-50000.0,0.00032,22]
[399844597,1766734352289,-50000.0,0.00032,12]
[399844598,1766734352299,-161.45083283,0.00032,30]
[399844599,1766734352308,-484.30246273,0.00032,7]
[399844600,1766734352318,-553.0,0.00032,30]
[399844601,1766734352327,-121135.66710685,0.00032,2]
[399844602,1766734352338,-250.0,0.00032,30]
[399844603,1766734352347,-311.56,0.00032,30]
[399844604,1766734352357,-431.54,0.00032,120]
[399844605,1766734352367,-200.0,0.00032,120]
[399844606,1766734352377,-234179.60509183,0.00032,2]
[399844607,1766734352387,-1263.0,0.00032,2]
[399844608,1766734352398,-912.0,0.00032,2]
[399844609,1766734352408,-1198.0,0.00032,2]
[399844610,1766734352418,-1327.0,0.00032,2]
[399844611,1766734352429,-2430.0,0.00032,2]
[399844612,1766734352439,-3459.0,0.00032,2]
[399844613,1766734352449,-3000.0,0.00032056,14]
[399844614,1766734352458,-152.85517104,0.0003216,2]
[399844615,1766734352468,-889.2253303,0.000323,2]
[399844616,1766734352478,-2000.0,0.000323,2]
[399844617,1766734352489,-212.42,0.00032454,30]
[399844618,1766734352498,-498.91187858,0.00032577,2]
[399844619,1766734352509,-2000.0,0.00032624,15]
[399844620,1766734352518,-150.0,0.00032658,2]
[399844621,1766734352528,-150.0,0.00032685,2]
[399844622,1766734352538,-223.60643053,0.00032713,2]
[399844623,1766734352547,-1061.26536299,0.00032733,7]
[399844624,1766734352557,-4801.47504572,0.000328,2]
[399844625,1766734352567,-300.0,0.000328,120]
[399844626,1766734352576,-191.15148527,0.000328,120]
[399844627,1766734352586,-209.0,0.0003286,30]
[399844628,1766734352596,-3776.21568505,0.00032876,60]
[399844629,1766734352606,-427.29593485,0.00032876,120]
[399844630,1766734352616,-204.94270215,0.00032876,120]
[399844631,1766734352626,-489.64749692,0.00032876,120]
[399844632,1766734352636,-296.10851722,0.00032876,120]
[399844633,1766734352646,-319.04143008,0.00032876,120]
[399844634,1766734352657,-442.01646865,0.00032876,120]
[399844635,1766734352666,-346.96319822,0.00032876,120]
[399844636,1766734352676,-362.44249151,0.00032876,120]
[399844637,1766734352686,-423.25776221,0.00032876,120]
[399844638,1766734352696,-290.93928265,0.00032876,120]
[399844639,1766734352706,-174.88550712,0.00032876,120]
[399844640,1766734352715,-317.64653468,0.00032876,120]
[399844641,1766734352725,-236.44396484,0.00032876,120]
[399844642,1766734352735,-422.81142685,0.00032876,120]
[399844643,1766734352745,-188.13136343,0.00032876,120]
[399844644,1766734352755,-500.0,0.00032876,120]
[399844645,1766734352765,-475.335878,0.00032876,120]
[399844646,1766734352775,-165.85161464,0.00032876,120]
[399844647,1766734352785,-412.70608986,0.00032876,120]
[399844648,1766734352795,-300.36046294,0.00032876,120]
[399844649,1766734352805,-500.0,0.00032876,120]
[399844650,1766734352815,-500.0,0.00032876,120]
[399844651,1766734352825,-245.07978204,0.00032876,120]
[399844652,1766734352835,-500.0,0.00032876,120]
[399844653,1766734352845,-500.0,0.00032876,120]
[399844654,1766734352855,-418.50745371,0.00032876,120]
[399844655,1766734352865,-500.0,0.00032876,120]
[399844656,1766734352875,-298.25754234,0.00032876,120]
[399844657,1766734352885,-500.0,0.00032876,120]
[399844658,1766734352895,-517.75180748,0.00032876,120]
[399844659,1766734352905,-500.0,0.00032876,120]
[399844660,1766734352915,-500.0,0.00032876,120]
[399844661,1766734352925,-500.0,0.00032876,120]
[399844662,1766734352935,-380.43203357,0.00032876,120]
[399844663,1766734352945,-500.0,0.00032876,120]
[399844664,1766734352954,-513.23397762,0.00032876,120]
[399844665,1766734352964,-212.05389799,0.00032876,120]
[399844666,1766734352973,-430.75180298,0.00032876,120]
[399844667,1766734352984,-278.23617819,0.00032876,120]
[399844668,1766734352993,-248.13022724,0.00032876,120]
[399844669,1766734353003,-500.0,0.00032876,120]
[399844670,1766734353013,-500.0,0.00032876,120]
[399844671,1766734353023,-316.23417508,0.00032876,120]
[399844672,1766734353033,-219.23959134,0.00032876,120]
[399844673,1766734353043,-424.40503926,0.00032876,2]
[399844674,1766734353056,-500.0,0.00032876,120]
[399844675,1766734353066,-500.0,0.00032876,120]
[399844676,1766734353075,-363.3993792,0.00032876,120]
[399844677,1766734353085,-500.0,0.00032876,14]
[399844678,1766734353095,-500.0,0.00032876,120]
[399844679,1766734353105,-500.0,0.00032876,14]
[399844680,1766734353116,-500.0,0.00032876,120]
[399844681,1766734353126,-500.0,0.00032876,14]
[399844682,1766734353138,-513.40444129,0.00032876,120]
[399844683,1766734353147,-500.0,0.00032876,14]
[399844684,1766734353158,-500.0,0.00032876,14]
[399844685,1766734353168,-500.0,0.00032876,14]
[399844686,1766734353179,-500.0,0.00032876,14]
[399844687,1766734353189,-500.0,0.00032876,14]
[399844688,1766734353199,-500.0,0.00032876,14]
[399844689,1766734353209,-500.0,0.00032876,14]
[399844690,1766734353220,-500.0,0.00032876,14]
[399844691,1766734353230,-500.0,0.00032876,14]
[399844692,1766734353240,-500.0,0.00032876,14]
[399844693,1766734353250,-500.0,0.00032876,14]
[399844694,1766734353260,-500.0,0.00032876,14]
[399844695,1766734353270,-500.0,0.00032876,14]
[399844696,1766734353281,-500.0,0.00032876,14]
[399844697,1766734353291,-500.0,0.00032876,14]
[399844698,1766734353300,-500.0,0.00032876,14]
[399844699,1766734353311,-500.0,0.00032876,14]
[399844700,1766734353320,-500.0,0.00032876,14]
[399844701,1766734353330,-491.89727221,0.00032876,14]
[399844702,1766734353340,-371.33239675,0.00032876,120]
[399844703,1766734353350,-469.06269922,0.00032876,120]
[399844704,1766734353360,-500.0,0.00032876,14]
[399844705,1766734353369,-500.0,0.00032876,14]
[399844706,1766734353378,-500.0,0.00032876,14]
[399844707,1766734353388,-500.0,0.00032876,14]
[399844708,1766734353398,-539.85149144,0.00032876,14]
[399844709,1766734353408,-344.90099798,0.00032876,120]
[399844710,1766734353418,-500.0,0.00032876,30]
[399844711,1766734353428,-500.0,0.00032876,30]
[399844712,1766734353438,-500.0,0.00032876,30]
[399844713,1766734353448,-500.0,0.00032876,30]
[399844714,1766734353458,-230.9416294,0.00032876,120]
[399844715,1766734353468,-500.0,0.00032876,30]
[399844716,1766734353478,-563.9936418,0.00032876,30]
[399844717,1766734353488,-448.06853592,0.00032876,120]
[399844718,1766734353498,-492.93371972,0.00032876,120]
[399844719,1766734353508,-410.1889371,0.00032876,120]
[399844720,1766734353518,-486.44234255,0.00032876,120]
[399844721,1766734353528,-500.0,0.00032876,120]
[399844722,1766734353537,-500.0,0.00032876,120]
[399844723,1766734353548,-620.59891532,0.00032876,120]
[399844724,1766734353558,-322.85809797,0.00032876,120]
[399844725,1766734353567,-252.33526545,0.00032876,120]
[399844726,1766734353577,-242.92262182,0.00032876,120]
[399844727,1766734353587,-405.98657546,0.00032876,120]
[399844728,1766734353596,-491.47075036,0.00032876,120]
[399844729,1766734353606,-325.45989149,0.00032876,120]
[399844730,1766734353616,-465.19428159,0.00032876,120]
[399844731,1766734353626,-289.113387,0.00032876,120]
[399844732,1766734353636,-236.05362107,0.00032876,120]
[399844733,1766734353646,-362.62327764,0.00032876,120]
[399844734,1766734353655,-287.11581389,0.00032876,120]
[399844735,1766734353666,-212.00344107,0.00032876,120]
[399844736,1766734353676,-242.74985402,0.00032876,120]
[399844737,1766734353686,-466.90510561,0.00032876,120]
[399844738,1766734353696,-162.71209481,0.00032876,120]
[399844739,1766734353707,-237.05890201,0.00032876,120]
[399844740,1766734353718,-240.77294686,0.00032876,120]
[399844741,1766734353727,-214.82221048,0.00032876,120]
[399844742,1766734353738,-343.13538796,0.00032876,120]
[399844743,1766734353747,-378.61892525,0.00032876,120]
[399844744,1766734353757,-365.10396075,0.00032876,120]
[399844745,1766734353767,-238.62524937,0.00032876,120]
[399844746,1766734353777,-170.32598204,0.00032876,120]
[399844747,1766734353787,-320.45527132,0.00032876,120]
[399844748,1766734353797,-246.97652901,0.00032876,120]
[399844749,1766734353807,-507.39233039,0.00032876,120]
[399844750,1766734353816,-433.11905883,0.00032876,120]
[399844751,1766734353825,-422.7504207,0.00032876,120]
[399844752,1766734353834,-165.78094605,0.00032876,120]
[399844753,1766734353843,-500.0,0.00032876,7]
[399844754,1766734353852,-500.0,0.00032876,7]
[399844755,1766734353862,-500.0,0.00032876,7]
[399844756,1766734353871,-500.0,0.00032876,7]
[399844757,1766734353880,-500.0,0.00032876,7]
[399844758,1766734353890,-500.0,0.00032876,7]
[399844759,1766734353899,-500.0,0.00032876,7]
[399844760,1766734353909,-258.06371162,0.00032876,7]
[399844761,1766734353919,-329.61396523,0.00032876,120]
[399844762,1766734353928,-311.46844474,0.00032876,120]
[399844763,1766734353936,-369.65374764,0.00032876,120]
[399844764,1766734353946,-283.97852641,0.00032876,120]
[399844765,1766734353955,-428.1217249,0.00032876,120]
[399844766,1766734353964,-290.99565133,0.00032876,120]
[399844767,1766734353974,-299.10489296,0.00032876,120]
[399844768,1766734353983,-345.55718336,0.00032876,120]
[399844769,1766734353993,-407.48345669,0.00032876,120]
[399844770,1766734354003,-246.84868551,0.00032876,120]
[399844771,1766734354012,-324.93792492,0.00032876,120]
[399844772,1766734354021,-256.02000459,0.00032876,120]
[399844773,1766734354031,-292.56317072,0.00032876,120]
[399844774,1766734354040,-473.83127415,0.00032876,120]
[399844775,1766734354050,-497.49904,0.00032876,120]
[399844776,1766734354060,-432.8551166,0.00032876,120]
[399844777,1766734354069,-415.75920172,0.00032876,120]
[399844778,1766734354079,-500.0,0.00032876,7]
[399844779,1766734354089,-500.0,0.00032876,7]
[399844780,1766734354099,-500.0,0.00032876,7]
[399844781,1766734354109,-396.58032653,0.00032876,120]
[399844782,1766734354119,-500.0,0.00032876,7]
[399844783,1766734354128,-412.60430918,0.00032876,120]
[399844784,1766734354143,-500.0,0.00032876,7]
[399844785,1766734354153,-500.0,0.00032876,7]
[399844786,1766734354162,-500.0,0.00032876,7]
[399844787,1766734354172,-500.0,0.00032876,7]
[399844788,1766734354183,-500.0,0.00032876,7]
[399844789,1766734354192,-500.0,0.00032876,7]
[399844790,1766734354202,-500.0,0.00032876,7]
[399844791,1766734354214,-500.0,0.00032876,7]
[399844792,1766734354224,-500.0,0.00032876,7]
[399844793,1766734354233,-500.0,0.00032876,7]
[399844794,1766734354243,-500.0,0.00032876,7]
[399844795,1766734354253,-416.56983094,0.00032876,7]
[399844796,1766734354263,-333.41258668,0.00032876,120]
[399844797,1766734354273,-400.0,0.00032876,120]
[399844798,1766734354283,-284.48408884,0.00032876,120]
[399844799,1766734354292,-331.3071046,0.00032876,120]
[399844800,1766734354302,-442.36651087,0.00032876,120]
[399844801,1766734354311,-289.59022809,0.00032876,120]
[399844802,1766734354320,-209.2854253,0.00032876,120]
[399844803,1766734354329,-435.40988472,0.00032876,120]
[399844804,1766734354339,-481.13887742,0.00032876,120]
[399844805,1766734354461,-341.01653547,0.00032876,120]
[399844806,1766734354471,-441.62250161,0.00032876,120]
[399844807,1766734354481,-185.53811782,0.00032876,120]
[399844808,1766734354491,-220.30780792,0.00032876,120]
[399844809,1766734354502,-435.93498978,0.00032876,120]
[399844810,1766734354512,-383.0313701,0.00032876,120]
[399844811,1766734354522,-432.02779773,0.00032876,120]
[399844812,1766734354531,-387.82346427,0.00032876,120]
[399844813,1766734354541,-459.29064536,0.00032876,120]
[399844814,1766734354551,-268.46969528,0.00032876,120]
[399844815,1766734354561,-278.99247663,0.00032876,120]
[399844816,1766734354572,-417.34777652,0.00032876,120]
[399844817,1766734354582,-500.0,0.00032876,2]
[399844818,1766734354592,-500.0,0.00032876,2]
[399844819,1766734354602,-364.03467458,0.00032876,2]
[399844820,1766734354612,-458.55295481,0.00032876,120]
[399844821,1766734354622,-272.21700916,0.00032876,120]
[399844822,1766734354631,-494.18560987,0.00032876,120]
[399844823,1766734354642,-305.0458659,0.00032876,120]
[399844824,1766734354653,-500.0,0.00032876,120]
[399844825,1766734354663,-500.0,0.00032876,120]
[399844826,1766734354673,-500.0,0.00032876,120]
[399844827,1766734354683,-500.0,0.00032876,120]
[399844828,1766734354693,-500.0,0.00032876,120]
[399844829,1766734354703,-500.0,0.00032876,120]
[399844830,1766734354712,-519.58671052,0.00032876,120]
[399844831,1766734354722,-500.0,0.00032876,120]
[399844832,1766734354732,-259.37411678,0.00032876,120]
[399844833,1766734354742,-500.0,0.00032876,120]
[399844834,1766734354751,-516.77302389,0.00032876,120]
[399844835,1766734354762,-310.31438753,0.00032876,120]
[399844836,1766734354772,-185.74634011,0.00032876,120]
[399844837,1766734354782,-375.68681891,0.00032876,120]
[399844838,1766734354792,-500.0,0.00032876,120]
[399844839,1766734354802,-439.36890779,0.00032876,120]
[399844840,1766734354812,-531.18033055,0.00032876,120]
[399844841,1766734354822,-441.95808847,0.00032876,120]
[399844842,1766734354832,-403.815606,0.00032876,120]
[399844843,1766734354842,-261.40146882,0.00032876,120]
[399844844,1766734354851,-478.55798295,0.00032876,120]
[399844845,1766734354861,-231.86381038,0.00032876,120]
[399844846,1766734354872,-300.14339767,0.00032876,120]
[399844847,1766734354882,-269.57285824,0.00032876,120]
[399844848,1766734354892,-425.56968334,0.00032876,120]
[399844849,1766734354902,-500.0,0.00032876,10]
[399844850,1766734354912,-500.0,0.00032876,10]
[399844851,1766734354922,-500.0,0.00032876,10]
[399844852,1766734354932,-648.06197327,0.00032876,10]
[399844853,1766734354942,-293.72083616,0.00032876,120]
[399844854,1766734354952,-469.50022353,0.00032876,120]
[399844855,1766734354962,-528.61575071,0.00032876,120]
[399844856,1766734354971,-317.92947906,0.00032876,120]
[399844857,1766734354981,-173.1942553,0.00032876,120]
[399844858,1766734354990,-460.0,0.00032876,120]
[399844859,1766734355000,-289.56768058,0.00032876,120]
[399844860,1766734355010,-278.38826475,0.00032876,120]
[399844861,1766734355020,-204.65525376,0.00032876,120]
[399844862,1766734355030,-208.14225599,0.00032876,120]
[399844863,1766734355039,-500.0,0.00032876,120]
[399844864,1766734355048,-500.0,0.00032876,120]
[399844865,1766734355058,-591.35283724,0.00032876,120]
[399844866,1766734355068,-238.6557846,0.00032876,120]
[399844867,1766734355077,-176.09,0.00032876,120]
[399844868,1766734355087,-500.0,0.00032876,30]
[399844869,1766734355097,-505.44696552,0.00032876,120]
[399844870,1766734355106,-500.0,0.00032876,30]
[399844871,1766734355116,-436.27274922,0.00032876,120]
[399844872,1766734355126,-621.35335583,0.00032876,30]
[399844873,1766734355139,-156.63902411,0.00032876,120]
[399844874,1766734355149,-440.66121695,0.00032876,120]
[399844875,1766734355158,-469.88624323,0.00032876,120]
[399844876,1766734355168,-500.0,0.00032876,120]
[399844877,1766734355179,-436.59402429,0.00032876,120]
[399844878,1766734355188,-532.8976235,0.00032876,120]
[399844879,1766734355198,-356.30794267,0.00032876,120]
[399844880,1766734355209,-253.95555612,0.00032876,120]
[399844881,1766734355218,-431.32376331,0.00032876,120]
[399844882,1766734355228,-500.0,0.00032876,120]
[399844883,1766734355238,-189.17322184,0.00032876,120]
[399844884,1766734355248,-228.11115503,0.00032876,120]
[399844885,1766734355258,-386.71856283,0.00032876,120]
[399844886,1766734355269,-492.43932567,0.00032876,120]
[399844887,1766734355278,-492.80073026,0.00032876,120]
[399844888,1766734355288,-397.63811697,0.00032876,120]
[399844889,1766734355298,-467.0490184,0.00032876,120]
[399844890,1766734355308,-476.91963711,0.00032876,120]
[399844891,1766734355317,-375.29327812,0.00032876,120]
[399844892,1766734355327,-238.858399,0.00032876,120]
[399844893,1766734355346,-360.96089705,0.00032876,120]
[399844894,1766734355355,-550.96793208,0.00032876,120]
[399844895,1766734355364,-223.41686765,0.00032876,120]
[399844896,1766734355373,-452.74556643,0.00032876,120]
[399844897,1766734355383,-337.88712973,0.00032876,120]
[399844898,1766734355393,-350.93904003,0.00032876,120]
[399844899,1766734355402,-435.98941232,0.00032876,120]
[399844900,1766734355412,-365.80769323,0.00032876,120]
[399844901,1766734355422,-252.47197485,0.00032876,120]
[399844902,1766734355432,-396.76724426,0.00032876,120]
[399844903,1766734355442,-315.16735808,0.00032876,120]
[399844904,1766734355452,-353.89105301,0.00032876,120]
[399844905,1766734355461,-457.2150978,0.00032876,120]
[399844906,1766734355471,-615.067526,0.00032876,120]
[399844907,1766734355482,-164.0030524,0.00032876,120]
[399844908,1766734355492,-337.76,0.00032876,120]
[399844909,1766734355502,-460.86873492,0.00032876,120]
[399844910,1766734355512,-220.47288768,0.00032876,120]
[399844911,1766734355522,-362.85859765,0.00032876,120]
[399844912,1766734355531,-508.39819944,0.00032876,2]
[399844913,1766734355540,-207.88509877,0.00032876,120]
[399844914,1766734355550,-271.68379813,0.00032876,120]
[399844915,1766734355560,-455.25295156,0.00032876,120]
[399844916,1766734355570,-267.35241348,0.00032876,120]
[399844917,1766734355579,-250.1130318,0.00032876,120]
[399844918,1766734355589,-261.72171528,0.00032876,120]
[399844919,1766734355598,-365.37651882,0.00032876,120]
[399844920,1766734355608,-447.76986739,0.00032876,120]
[399844921,1766734355618,-216.61662179,0.00032876,120]
[399844922,1766734355627,-394.78015255,0.00032876,120]
[399844923,1766734355637,-270.34918973,0.00032876,120]
[399844924,1766734355648,-434.26372376,0.00032876,120]
[399844925,1766734355659,-371.6144404,0.00032876,120]
[399844926,1766734355669,-416.95943988,0.00032876,120]
[399844927,1766734355679,-327.38503327,0.00032876,120]
[399844928,1766734355688,-363.85152676,0.00032876,120]
[399844929,1766734355698,-444.08608284,0.00032876,120]
[399844930,1766734355707,-314.58336809,0.00032876,120]
[399844931,1766734355718,-446.96412757,0.00032876,120]
[399844932,1766734355727,-421.37330335,0.00032876,120]
[399844933,1766734355737,-468.77886491,0.00032876,120]
[399844934,1766734355746,-347.66434284,0.00032876,120]
[399844935,1766734355756,-304.35864986,0.00032876,120]
[399844936,1766734355766,-460.79078965,0.00032876,120]
[399844937,1766734355776,-276.01285012,0.00032876,120]
[399844938,1766734355785,-430.8164191,0.00032876,120]
[399844939,1766734355795,-320.15552325,0.00032876,120]
[399844940,1766734355804,-266.41375711,0.00032876,120]
[399844941,1766734355814,-434.69988719,0.00032876,120]
[399844942,1766734355824,-300.0,0.00032876,120]
[399844943,1766734355833,-352.08902503,0.00032876,120]
[399844944,1766734355843,-534.13303731,0.00032876,120]
[399844945,1766734355853,-328.6008483,0.00032876,120]
[399844946,1766734355862,-297.94888312,0.00032876,120]
[399844947,1766734355872,-500.0,0.00032876,120]
[399844948,1766734355881,-500.0,0.00032876,120]
[399844949,1766734355890,-500.0,0.00032876,90]
[399844950,1766734355900,-522.55808452,0.00032876,120]
[399844951,1766734355910,-500.0,0.00032876,90]
[399844952,1766734355919,-500.0,0.00032876,90]
[399844953,1766734355929,-500.0,0.00032876,90]
[399844954,1766734355938,-500.0,0.00032876,90]
[399844955,1766734355947,-500.0,0.00032876,90]
[399844956,1766734355956,-500.0,0.00032876,90]
[399844957,1766734355966,-500.0,0.00032876,90]
[399844958,1766734355975,-420.990017,0.00032876,90]
[399844959,1766734355984,-333.8674881,0.00032876,120]
[399844960,1766734355995,-292.98804378,0.00032876,120]
[399844961,1766734356004,-191.90411742,0.00032876,120]
[399844962,1766734356014,-274.63492143,0.00032876,120]
[399844963,1766734356023,-394.4359855,0.00032876,120]
[399844964,1766734356033,-500.0,0.00032876,120]
[399844965,1766734356042,-500.0,0.00032876,120]
[399844966,1766734356051,-500.0,0.00032876,120]
[399844967,1766734356060,-500.0,0.00032876,120]
[399844968,1766734356070,-565.3887136,0.00032876,120]
[399844969,1766734356079,-410.60773779,0.00032876,120]
[399844970,1766734356090,-383.01645782,0.00032876,120]
[399844971,1766734356100,-501.61529636,0.00032876,120]
[399844972,1766734356110,-347.57001503,0.00032876,120]
[399844973,1766734356120,-290.67332576,0.00032876,120]
[399844974,1766734356130,-201.16363049,0.00032876,120]
[399844975,1766734356144,-297.05647018,0.00032876,120]
[399844976,1766734356154,-430.27099267,0.00032876,120]
[399844977,1766734356165,-161.11454562,0.00032876,120]
[399844978,1766734356175,-431.70084443,0.00032876,120]
[399844979,1766734356184,-422.42218361,0.00032876,120]
[399844980,1766734356194,-303.13955454,0.00032876,120]
[399844981,1766734356207,-205.18367807,0.00032876,120]
[399844982,1766734356216,-552.57232857,0.00032876,120]
[399844983,1766734356226,-473.25082583,0.00032876,120]
[399844984,1766734356235,-443.43194738,0.00032876,120]
[399844985,1766734356244,-247.48984444,0.00032876,120]
[399844986,1766734356255,-432.07023158,0.00032876,120]
[399844987,1766734356264,-231.05457592,0.00032876,120]
[399844988,1766734356273,-338.10199129,0.00032876,120]
[399844989,1766734356283,-454.1678091,0.00032876,120]
[399844990,1766734356293,-192.15196026,0.00032876,120]
[399844991,1766734356303,-245.96847877,0.00032876,120]
[399844992,1766734356313,-398.79204927,0.00032876,120]
[399844993,1766734356322,-230.41576543,0.00032876,120]
[399844994,1766734356331,-498.09855471,0.00032876,120]
[399844995,1766734356341,-151.28564147,0.00032876,120]
[399844996,1766734356351,-486.05163812,0.00032876,120]
[399844997,1766734356362,-381.1121474,0.00032876,120]
[399844998,1766734356371,-355.14604802,0.00032876,120]
[399844999,1766734356383,-416.63349709,0.00032876,120]
[399845000,1766734356393,-320.0,0.00032876,120]
[399845001,1766734356403,-314.1794905,0.00032876,120]
[399845002,1766734356415,-369.69248266,0.00032876,120]
[399845003,1766734356425,-500.0,0.00032876,120]
[399845004,1766734356434,-500.0,0.00032876,120]
[399845005,1766734356444,-500.0,0.00032876,120]
[399845006,1766734356454,-445.54011432,0.00032876,120]
[399845007,1766734356463,-272.37534586,0.00032876,120]
[399845008,1766734356473,-295.95183506,0.00032876,120]
[399845009,1766734356484,-500.0,0.00032876,120]
[399845010,1766734356494,-567.35382642,0.00032876,120]
[399845011,1766734356504,-466.86328195,0.00032876,120]
[399845012,1766734356514,-452.28411937,0.00032876,120]
[399845013,1766734356524,-188.92323052,0.00032876,120]
[399845014,1766734356534,-423.56574878,0.00032876,120]
[399845015,1766734356543,-192.97689054,0.00032876,120]
[399845016,1766734356552,-436.46130357,0.00032876,14]
[399845017,1766734356562,-432.58115451,0.00032876,120]
[399845018,1766734356572,-263.01171019,0.00032876,120]
[399845019,1766734356581,-193.09298914,0.00032876,120]
[399845020,1766734356591,-467.28558014,0.00032876,120]
[399845021,1766734356603,-232.70422529,0.00032876,120]
[399845022,1766734356612,-259.4703632,0.00032876,120]